bitfinex-derivatives/quotes_BNBF0:USTF0_20250326
["timestamp","ask_amount","ask_price","bid_price","bid_amount"]
[1743006873431,2.127,623.32,622.49,1.19551057]
[1743006873432,0.94631321,623.29,622.49,1.19551057]
[1743006873631,0.94631321,623.3,622.49,1.19551057]
[1743006874239,0.94631321,623.29,622.49,1.19551057]
[1743006874437,1.97331321,623.29,622.49,1.19551057]
[1743006874735,1.97331321,623.29,622.47,0.27929262]
[1743006875232,1.027,623.29,622.47,0.27929262]
[1743006875537,0.925,623.28,622.47,0.27929262]
[1743006876737,0.925,623.28,622.52,1.19551057]
[1743006878737,0.925,623.28,622.61,1.19551057]
[1743006881642,0.925,623.28,622.64,1.19551057]
[1743006882940,0.94830972,623.27,622.64,1.19551057]
[1743006883340,0.94830972,623.26,622.64,1.19551057]
[1743006884042,0.94830972,623.25,622.64,1.19551057]
[1743006884544,0.94830972,623.24,622.59,1.19551057]
[1743006885142,0.94830972,623.23,622.59,1.19551057]
[1743006885641,0.94830972,623.22,622.59,1.19551057]
[1743006886038,2.18085039,623.21,622.59,1.19551057]
[1743006886242,1.23254067,623.2,622.59,1.19551057]
[1743006886441,1.23254067,623.19,622.59,1.19551057]
[1743006886643,1.23254067,623.18,622.59,1.19551057]
[1743006886837,1.23254067,623.17,622.57,1.19551057]
[1743006887044,1.23254067,623.16,622.57,1.19551057]
[1743006887345,1.23254067,623.15,622.57,1.19551057]
[1743006887540,0.94830972,623.16,622.57,1.19551057]
[1743006887842,0.94830972,623.15,622.57,1.19551057]
[1743006888643,0.94830972,623.14,622.57,1.19551057]
[1743006889039,0.94830972,623.14,622.56,1.19551057]
[1743006889441,1.23266212,623.28,622.56,1.19551057]
[1743006889644,1.063,623.13,622.56,1.19551057]
[1743006890945,1.063,623.13,622.7,1.19551057]
[1743006892743,1.321,623.12,622.7,1.19551057]
[1743006892942,1.321,623.12,622.72,1.19551057]
[1743006893246,0.926,623.11,622.72,1.19551057]
[1743006895847,0.926,623.11,622.78,1.19551057]
[1743006897653,0.926,623.11,622.64,1.19551057]
[1743006899052,0.987,623.1,622.64,1.19551057]
[1743006899653,0.987,623.1,622.6,1.19551057]
[1743006901754,0.987,623.1,622.54,1.19551057]
[1743006903558,1.296,623.09,622.54,1.19551057]
[1743006904460,1.296,623.09,622.48,0.27932849]
[1743006906561,1.296,623.09,622.37,1.19551057]
[1743006906760,1.296,623.09,622.48,0.27933746]
[1743006907157,1.296,623.09,622.37,1.19551057]
[1743006907358,1.296,623.09,622.38,1.19551057]
[1743006907955,1.296,623.09,622.39,0.27932064]
[1743006909563,1.296,623.09,622.38,1.19551057]
[1743006909764,1.296,623.09,622.82,1.19551057]
[1743006911967,1.296,623.09,622.86,1.19551057]
[1743006914276,1.296,623.09,622.8,1.19551057]
[1743006916779,1.296,623.09,622.82,1.19551057]
[1743006918375,1.296,623.09,622.85,1.19551057]
[1743006920282,1.296,623.09,622.8,1.19551057]
[1743006920877,2.396,623.08,622.8,1.19551057]
[1743006922183,2.396,623.08,622.77,1.19551057]
[1743006923785,3.869,623.08,622.77,1.19551057]
[1743006924285,3.869,623.08,622.79,1.19551057]
[1743006926186,3.869,623.08,622.85,1.19551057]
[1743006928689,3.869,623.08,622.62,1.19923123]
[1743006928690,3.869,623.08,622.87,1.19551057]
[1743006931391,3.869,623.08,622.88,1.19551057]
[1743006933597,3.869,623.08,622.89,1.19551057]
[1743006935287,3.869,623.08,622.82,1.19551057]
[1743006937796,3.869,623.08,622.86,1.19551057]
[1743006938192,2.536,623.08,622.86,1.19551057]
[1743006939493,2.536,623.08,622.85,1.19551057]
[1743006941793,2.536,623.08,622.84,1.19551057]
[1743006942995,1.063,623.08,622.84,1.19551057]
[1743006943695,1.063,623.08,622.82,1.19551057]
[1743006943892,1.296,623.09,622.82,1.19551057]
[1743006945290,0.925,623.08,622.82,1.19551057]
[1743006945995,2.23,623.08,622.82,1.19551057]
[1743006946395,2.23,623.08,622.79,0.27923211]
[1743006947091,3.178,623.08,622.79,0.27923211]
[1743006949297,3.178,623.08,622.79,1.47474268]
[1743006950500,3.178,623.08,622.91,1.19551057]
[1743006953595,3.178,623.08,622.93,1.19551057]
[1743006955301,3.178,623.08,623.01,1.19551057]
[1743006957703,3.178,623.08,623.06,1.19551057]
[1743006959905,3.178,623.08,622.92,1.19923123]
[1743006962405,3.178,623.08,623.01,1.19948546]
[1743006964804,3.178,623.08,622.96,1.19948546]
[1743006967107,1.873,623.08,622.96,1.19948546]
[1743006969401,0.948,623.08,622.96,1.19948546]
[1743006970006,0.948,623.08,623.01,1.19948546]
[1743006971606,0.948,623.08,623.04,1.19948546]
[1743006972208,1.376,623.17,623.04,1.19948546]
[1743006974016,1.376,623.17,623.03,1.19948546]
[1743006976514,1.376,623.17,622.43,1.43777666]
[1743006976515,1.376,623.17,623.06,1.19948546]
[1743006978721,1.376,623.17,622.96,1.19948546]
[1743006980918,1.376,623.17,622.91,1.19948546]
[1743006983722,1.376,623.17,622.91,1.19948546]
[1743006985621,1.376,623.17,622.93,1.19948546]
[1743006987429,1.376,623.17,623.07,1.19948546]
[1743006989230,1.376,623.17,623.04,1.19948546]
[1743006990131,1.636,623.18,623.04,1.19948546]
[1743006991731,1.636,623.18,623.07,1.19948546]
[1743006994640,1.636,623.18,622.85,1.19923123]
[1743006994641,1.636,623.18,622.98,1.19948546]
[1743006998234,1.636,623.18,622.87,1.19948546]
[1743007000839,1.636,623.18,622.93,1.19948546]
[1743007002943,1.636,623.18,623.06,1.19948546]
[1743007003242,0.892,623.23,623.06,1.19948546]
[1743007005245,0.892,623.23,623.07,1.19948546]
[1743007008046,0.892,623.23,623.08,1.19948546]
[1743007010748,0.892,623.23,623.06,1.19948546]
[1743007014251,0.892,623.23,623.09,1.19948546]
[1743007016151,0.892,623.23,623.05,1.19948546]
[1743007018050,0.892,623.23,623.11,1.19948546]
[1743007019554,2.447,623.32,623.11,1.19948546]
[1743007019953,2.447,623.32,623.13,1.19948546]
[1743007021849,2.447,623.32,623.11,1.19948546]
[1743007022252,0.94962273,623.31,623.11,1.19948546]
[1743007022852,0.94962273,623.3,623.11,1.19948546]
[1743007023451,1.23377939,623.29,623.11,1.19948546]
[1743007023654,1.23377939,623.28,623.11,1.19948546]
[1743007023945,0.94962273,623.29,623.11,1.19948546]
[1743007023946,1.23377939,623.27,623.11,1.19948546]
[1743007024151,2.447,623.32,622.9,1.19948546]
[1743007026151,3.509,623.32,622.9,1.19948546]
[1743007026355,3.509,623.32,622.79,1.19948546]
[1743007028149,4.433,623.32,622.79,1.19948546]
[1743007028654,4.433,623.32,622.59,0.27925116]
[1743007028655,4.433,623.32,622.75,1.19948546]
[1743007029556,0.94870821,623.31,622.75,1.19948546]
[1743007030359,0.94870821,623.3,622.75,1.19948546]
[1743007031153,0.94870821,623.31,622.75,1.19948546]
[1743007031356,1.23223231,623.3,622.75,1.19948546]
[1743007031551,1.23223231,623.29,622.75,1.19948546]
[1743007031755,0.94870821,623.3,622.75,1.19948546]
[1743007031956,0.94870821,623.3,622.47,0.27928253]
[1743007031957,1.23221828,623.29,622.47,0.27928253]
[1743007032154,0.94870821,623.29,622.47,0.27928253]
[1743007032858,0.94870821,623.28,622.38,1.19948546]
[1743007033057,0.94870821,623.28,622.47,0.27932737]
[1743007033355,2.29070821,623.27,622.38,1.19948546]
[1743007034061,2.29070821,623.27,622.39,0.27932961]
[1743007034255,0.94870821,623.26,622.39,0.27932961]
[1743007034859,0.94870821,623.26,622.43,1.19948546]
[1743007035057,0.94870821,623.25,622.43,1.19948546]
[1743007035662,0.94870821,623.24,622.43,1.19948546]
[1743007036261,0.94870821,623.23,622.43,1.19948546]
[1743007036561,1.342,623.27,622.43,1.19948546]
[1743007037261,0.94711396,623.26,622.43,1.19948546]
[1743007037463,0.94711396,623.26,622.52,1.19948546]
[1743007037660,0.94711396,623.25,622.52,1.19948546]
[1743007038763,0.94711396,623.24,622.52,1.19948546]
[1743007039165,0.94711396,623.23,622.52,1.19948546]
[1743007039364,0.94711396,623.22,622.52,1.19948546]
[1743007039559,0.94711396,623.22,622.48,1.19948546]
[1743007040158,1.342,623.27,622.48,1.19948546]
[1743007041567,1.342,623.27,622.37,1.19948546]
[1743007042067,1.062,623.26,622.37,1.19948546]
[1743007042964,1.062,623.26,622.38,0.27934755]
[1743007044070,1.062,623.26,622.39,1.19948546]
[1743007046972,1.062,623.26,622.38,1.47883301]
[1743007047571,1.062,623.26,622.38,1.19948546]
[1743007048569,2.00674487,623.26,622.38,1.19948546]
[1743007049773,2.00674487,623.26,622.35,1.19948546]
[1743007051068,2.28611036,623.26,622.35,1.19948546]
[1743007051568,0.925,623.25,622.35,1.19948546]
[1743007051973,0.925,623.25,622.34,1.19948546]
[1743007052174,1.358,623.24,622.34,1.19948546]
[1743007053268,0.924,623.23,622.34,1.19948546]
[1743007054175,0.924,623.23,622.33,0.27936549]
[1743007054176,0.924,623.23,622.35,1.19948546]
[1743007056478,0.924,623.23,622.44,1.19948546]
[1743007058678,0.924,623.23,622.47,1.19948546]
[1743007061093,0.27937109,623.22,622.47,1.19948546]
[1743007061493,0.27937109,623.22,622.5,1.19948546]
[1743007063490,0.27937109,623.22,622.43,1.19948546]
[1743007063491,1.223042,623.22,622.43,1.19948546]
[1743007063887,1.062,623.21,622.43,1.19948546]
[1743007064090,2.65,623.21,622.43,1.19948546]
[1743007064289,0.94367091,623.2,622.43,1.19948546]
[1743007064494,2.65,623.21,622.43,1.19948546]
[1743007064495,0.94367091,623.19,622.43,1.19948546]
[1743007065597,0.94367091,623.18,622.43,1.19948546]
[1743007065796,0.94367091,623.18,622.26,0.27937109]
[1743007065797,0.94367091,623.18,622.37,1.19948546]
[1743007066296,0.94367091,623.17,622.37,1.19948546]
[1743007066898,0.94367091,623.16,622.37,1.19948546]
[1743007067398,0.94367091,623.15,622.37,1.19948546]
[1743007068200,0.94367091,623.14,622.37,1.19948546]
[1743007068801,1.134,623.13,622.37,1.19948546]
[1743007069102,2.35708238,623.13,622.2,1.19948546]
[1743007069302,1.41341147,623.13,622.2,1.19948546]
[1743007069504,0.94349734,623.12,622.2,1.19948546]
[1743007070100,0.94349734,623.11,622.2,1.19948546]
[1743007070802,0.94349734,623.1,622.2,1.19948546]
[1743007071197,0.94349734,623.09,622.13,0.27943951]
[1743007071502,2.16975532,623.09,622.13,0.27943951]
[1743007071698,0.94349734,623.08,622.03,1.19948546]
[1743007072404,0.94349734,623.07,622.03,1.19948546]
[1743007073003,0.27948103,623.06,622.04,0.27948103]
[1743007073199,1.22297837,623.06,622.24,1.19948546]
[1743007073703,0.94349734,623.05,622.24,1.19948546]
[1743007074304,0.94349734,623.04,622.24,1.19948546]
[1743007074899,0.27946308,623.03,622.24,1.19948546]
[1743007075101,1.22296042,623.03,622.24,1.19948546]
[1743007075504,0.94349734,623.02,622.24,1.19948546]
[1743007076005,0.94349734,623.01,622.24,1.19948546]
[1743007076305,0.924,623.01,622.24,1.19948546]
[1743007078111,0.27947318,623.0,622.27,1.19948546]
[1743007080010,0.27947318,623.0,622.03,0.27947318]
[1743007080011,0.27947318,623.0,622.24,1.19948546]
[1743007080711,0.924,623.01,622.24,1.19948546]
[1743007082110,0.27947318,623.0,622.12,1.19948546]
[1743007083305,1.062,622.99,622.12,1.19948546]
[1743007083713,0.94349734,622.98,622.12,1.19948546]
[1743007084106,0.94349734,622.97,622.12,1.19948546]
[1743007085113,2.17091474,622.96,622.12,1.19948546]
[1743007085315,0.94349734,622.96,622.12,1.19948546]
[1743007085515,1.2274174,622.97,622.12,1.19948546]
[1743007085716,0.94452136,622.95,622.12,1.19948546]
[1743007086214,0.94452136,622.94,622.12,1.19948546]
[1743007086614,2.49300212,622.93,622.12,1.19948546]
[1743007086812,2.49300727,622.92,622.12,1.19948546]
[1743007087007,1.2274174,622.91,622.12,1.19948546]
[1743007087212,1.2274174,622.9,622.12,1.19948546]
[1743007087413,1.2274174,622.89,622.12,1.19948546]
[1743007087714,1.2274174,622.88,622.14,1.19948546]
[1743007087911,0.2795293,622.88,622.14,1.19948546]
[1743007088111,1.5069467,622.88,622.14,1.19948546]
[1743007088311,0.2795293,622.88,622.14,1.19948546]
[1743007088508,0.94452136,622.87,622.14,1.19948546]
[1743007088910,0.94452136,622.86,622.14,1.19948546]
[1743007089513,0.94452136,622.85,622.14,1.19948546]
[1743007089915,0.94452136,622.85,621.96,1.19948546]
[1743007090115,0.94452136,622.84,621.96,1.19948546]
[1743007090415,0.94452136,622.83,621.96,1.19948546]
[1743007091009,0.94452136,622.82,621.96,1.19948546]
[1743007091616,0.94452136,622.81,621.94,1.19948546]
[1743007092011,0.94452136,622.8,621.94,1.19948546]
[1743007092215,1.89652136,622.8,621.94,1.19948546]
[1743007092516,0.952,622.8,621.94,1.19948546]
[1743007093117,0.952,622.8,621.96,1.19948546]
[1743007093518,1.275,622.79,621.96,1.19948546]
[1743007094821,1.275,622.79,622.01,1.19948546]
[1743007097022,1.275,622.79,622.08,1.19948546]
[1743007097422,3.44751356,622.79,622.08,1.19948546]
[1743007098423,2.21952136,622.79,622.08,1.19948546]
[1743007098624,1.275,622.79,621.97,1.19948546]
[1743007101021,1.275,622.79,621.93,1.19948546]
[1743007102827,0.982,622.78,621.93,1.19948546]
[1743007103833,0.982,622.78,621.94,1.19948546]
[1743007105028,1.394,622.77,621.94,1.19948546]
[1743007105834,1.394,622.77,621.97,1.19948546]
[1743007108041,1.394,622.77,622.19,1.19948546]
[1743007108437,2.651,622.76,622.19,1.19948546]
[1743007109740,2.651,622.76,622.18,1.19948546]
[1743007111737,2.651,622.76,622.24,1.19948546]
[1743007112842,1.303,622.75,622.24,1.19948546]
[1743007113545,2.24963184,622.75,622.24,1.19948546]
[1743007113945,1.303,622.75,622.19,1.19948546]
[1743007115847,1.303,622.75,622.14,1.19948546]
[1743007117244,2.25006786,622.75,622.14,1.19948546]
[1743007117845,2.25006786,622.75,622.15,1.19948546]
[1743007120049,2.25006786,622.75,622.19,1.19948546]
[1743007121251,0.94706786,622.74,622.19,1.19948546]
[1743007121949,0.94706786,622.73,622.19,1.19948546]
[1743007122350,0.94706786,622.72,622.19,1.19948546]
[1743007122553,0.94706786,622.72,622.22,1.19948546]
[1743007123055,0.94706786,622.71,622.22,1.19948546]
[1743007123753,1.303,622.75,622.22,1.19948546]
[1743007123754,0.94706786,622.7,622.22,1.19948546]
[1743007124359,0.94706786,622.69,622.23,1.19948546]
[1743007124753,1.88806786,622.69,622.23,1.19948546]
[1743007125149,0.94706786,622.68,622.23,1.19948546]
[1743007125955,1.87006786,622.67,622.23,1.19948546]
[1743007126352,0.923,622.67,622.23,1.19948546]
[1743007126553,0.923,622.67,622.24,1.19948546]
[1743007127155,0.968,622.66,622.24,1.19948546]
[1743007128663,0.94983415,622.65,622.24,1.19948546]
[1743007129360,0.968,622.66,622.24,1.19948546]
[1743007130356,2.64636452,622.65,622.24,1.19948546]
[1743007130856,1.696,622.65,622.24,1.19948546]
[1743007132161,1.16,622.64,622.24,1.19948546]
[1743007134066,1.16,622.64,622.04,1.19948546]
[1743007136469,1.16,622.64,622.07,1.19948546]
[1743007138269,1.16,622.64,621.94,0.27951695]
[1743007138270,1.16,622.64,622.05,1.19948546]
[1743007139765,1.16,622.64,622.16,1.19948546]
[1743007142373,1.16,622.64,622.24,1.19948546]
[1743007142774,1.062,622.63,622.24,1.19948546]
[1743007144675,1.062,622.63,622.19,1.19948546]
[1743007146770,1.062,622.63,622.29,1.19948546]
[1743007149279,1.062,622.63,622.03,1.22184386]
[1743007149280,1.255,622.62,622.27,1.19948546]
[1743007151479,1.255,622.62,622.31,1.19948546]
[1743007153383,1.255,622.62,622.11,1.19948546]
[1743007154882,1.255,622.62,621.96,0.27954726]
[1743007154883,1.255,622.62,622.16,1.19948546]
[1743007156077,0.923,622.61,622.16,1.19948546]
[1743007156278,0.923,622.61,621.8,1.19814721]
[1743007156279,0.923,622.61,622.17,1.19948546]
[1743007158781,0.923,622.61,622.04,1.19948546]
[1743007159579,0.942,622.6,622.04,1.19948546]
[1743007161085,0.942,622.6,622.06,1.19948546]
[1743007163089,0.942,622.6,622.14,1.19948546]
[1743007165893,0.942,622.6,621.69,1.19814721]
[1743007165894,0.942,622.6,622.15,1.19948546]
[1743007167895,0.942,622.6,622.31,1.19948546]
[1743007168094,1.061,622.59,622.31,1.19948546]
[1743007169594,1.061,622.59,622.07,0.27951134]
[1743007169595,1.061,622.59,622.36,1.19948546]
[1743007172288,1.061,622.59,622.41,1.19948546]
[1743007175196,1.061,622.59,622.31,1.19948546]
[1743007177597,1.061,622.59,622.18,1.19948546]
[1743007178393,0.869,622.58,622.18,1.19948546]
[1743007182300,0.869,622.58,622.19,1.19948546]
[1743007184701,0.869,622.58,622.38,1.19948546]
[1743007186799,0.869,622.58,622.37,1.19948546]
[1743007188903,0.869,622.58,622.49,1.19948546]
[1743007191205,0.869,622.58,622.4,1.19948546]
[1743007193104,0.869,622.58,622.41,1.19948546]
[1743007195411,1.061,622.62,622.41,1.19948546]
[1743007195813,1.061,622.62,622.15,0.27944737]
[1743007197706,1.061,622.62,622.06,1.19948546]
[1743007198108,1.184,622.61,622.06,1.19948546]
[1743007198713,1.184,622.61,622.04,1.19948546]
[1743007199108,1.184,622.61,622.07,0.27948215]
[1743007200313,0.922,622.6,622.07,0.27948215]
[1743007203713,0.922,622.6,621.97,1.19948546]
[1743007204114,0.922,622.6,622.07,0.27951807]
[1743007204325,0.922,622.6,621.97,1.19948546]
[1743007205015,0.922,622.6,621.98,0.27951807]
[1743007205813,0.922,622.6,622.32,1.19948546]
[1743007207910,0.91693096,622.6,622.32,1.19948546]
[1743007208114,0.91693096,622.6,622.04,0.27948777]
[1743007208115,1.184,622.61,622.18,1.19948546]
[1743007210917,1.184,622.61,622.19,1.19948546]
[1743007212715,1.232,622.6,622.19,1.19948546]
[1743007212919,1.232,622.6,622.2,1.19948546]
[1743007215212,0.976,622.59,622.2,1.19948546]
[1743007215518,0.976,622.59,622.15,1.19948546]
[1743007217421,0.976,622.59,622.17,1.19948546]
[1743007217618,1.061,622.58,622.17,1.19948546]
[1743007220023,1.061,622.58,622.27,1.19948546]
[1743007224128,1.061,622.58,622.27,1.19948546]
[1743007224328,1.061,622.58,622.26,1.19948546]
[1743007229233,1.061,622.58,622.25,1.19948546]
[1743007231132,2.764,622.58,622.27,1.19948546]
[1743007233530,2.764,622.58,622.41,1.19948546]
[1743007234636,1.703,622.58,622.41,1.19948546]
[1743007235935,1.703,622.58,622.51,1.19948546]
[1743007238135,1.703,622.58,622.51,1.18376723]
[1743007242837,1.703,622.58,622.21,1.19923123]
[1743007245836,1.703,622.58,622.4,1.19923123]
[1743007247836,1.703,622.58,622.28,1.19923123]
[1743007249040,3.133,622.58,622.28,1.19923123]
[1743007249440,3.133,622.58,622.23,0.27943839]
[1743007251137,4.102,622.58,622.23,0.27943839]
[1743007251640,4.102,622.58,622.25,1.19923123]
[1743007253741,4.102,622.58,622.24,1.47868645]
[1743007254737,4.102,622.58,622.24,1.19923123]
[1743007256039,4.102,622.58,622.24,1.47868757]
[1743007256848,4.102,622.58,622.29,1.19923123]
[1743007258248,5.035,622.58,622.29,1.19923123]
[1743007259154,5.035,622.58,622.36,1.19923123]
[1743007259654,3.332,622.58,622.36,1.19923123]
[1743007261857,3.332,622.58,622.39,1.19923123]
[1743007264654,3.332,622.58,621.93,2.44621723]
[1743007264655,3.332,622.58,622.35,1.19923123]
[1743007265956,1.902,622.58,622.35,1.19923123]
[1743007267163,1.902,622.58,622.24,1.19814721]
[1743007267164,1.902,622.58,622.24,1.19923123]
[1743007267965,1.902,622.58,622.25,0.27946981]
[1743007269066,1.902,622.58,622.4,1.19923123]
[1743007270867,1.902,622.58,622.5,1.19923123]
[1743007273267,1.902,622.58,622.56,1.19923123]
[1743007274270,0.969,622.58,622.56,1.19923123]
[1743007275568,0.969,622.58,622.53,1.19923123]
[1743007277072,0.969,622.58,622.52,1.19923123]
[1743007279173,0.969,622.58,622.53,1.19923123]
[1743007282070,0.969,622.58,622.44,1.19814721]
[1743007282071,0.969,622.58,622.35,1.19923123]
[1743007284678,0.969,622.58,622.25,0.27943727]
[1743007287080,1.947,622.58,622.25,0.27943727]
[1743007287780,1.947,622.58,622.15,1.19923123]
[1743007288180,1.947,622.58,622.25,0.27947991]
[1743007288380,2.862,622.58,622.15,1.19923123]
[1743007289178,2.862,622.58,622.16,0.2794844]
[1743007289581,2.862,622.58,622.29,1.19923123]
[1743007291680,2.862,622.58,622.27,1.19923123]
[1743007294883,2.862,622.58,622.14,1.4776361]
[1743007294884,2.862,622.58,622.34,1.19923123]
[1743007295080,3.871,622.58,622.34,1.19923123]
[1743007296683,3.871,622.58,622.14,0.27948889]
[1743007296879,3.871,622.58,622.13,1.19923123]
[1743007298086,3.871,622.58,622.14,0.27950236]
[1743007298685,3.871,622.58,622.16,1.19923123]
[1743007301088,3.871,622.58,622.18,1.19923123]
[1743007303686,3.871,622.58,622.38,1.19923123]
[1743007304086,1.987,622.58,622.38,1.19923123]
[1743007305686,1.987,622.58,622.37,1.19923123]
[1743007308089,1.987,622.58,622.38,1.19923123]
[1743007313197,1.987,622.58,622.18,0.27946083]
[1743007314795,1.987,622.58,622.09,1.19923123]
[1743007315188,1.987,622.58,622.1,0.27948664]
[1743007315793,1.987,622.58,622.4,1.19923123]
[1743007317198,1.009,622.58,622.4,1.19923123]
[1743007318103,1.009,622.58,622.3,1.19923123]
[1743007318302,2.13,622.62,622.3,1.19923123]
[1743007320307,2.13,622.62,622.16,0.27945186]
[1743007320308,1.461,622.61,622.36,1.19923123]
[1743007322307,2.52,622.61,622.36,1.19923123]
[1743007322907,2.52,622.61,622.12,0.2794844]
[1743007322908,2.52,622.61,622.29,1.19923123]
[1743007325609,2.52,622.61,622.17,1.19923123]
[1743007327813,2.52,622.61,622.16,1.19923123]
[1743007330408,2.52,622.61,622.09,0.27951246]
[1743007332809,2.52,622.61,622.08,1.19923123]
[1743007333013,2.52,622.61,622.18,1.19923123]
[1743007334515,0.914,622.6,622.18,1.19923123]
[1743007335816,0.914,622.6,622.19,1.19923123]
[1743007336615,1.203,622.59,622.19,1.19923123]
[1743007338016,1.203,622.59,622.1,0.94271219]
[1743007338017,1.203,622.59,622.16,1.19923123]
[1743007339415,0.896,622.58,622.16,1.19923123]
[1743007339816,0.896,622.58,622.21,1.19923123]
[1743007341720,0.896,622.58,622.19,1.19923123]
[1743007344023,0.896,622.58,622.09,0.27951358]
[1743007344825,0.896,622.58,621.74,1.19923123]
[1743007346124,0.896,622.58,621.79,1.47877512]
[1743007346425,0.896,622.58,621.8,0.32164683]
[1743007351121,0.896,622.58,622.28,1.19923123]
[1743007353027,0.896,622.58,622.37,1.19923123]
[1743007355229,0.896,622.58,622.04,2.44621723]
[1743007355230,0.896,622.58,622.51,1.19923123]
[1743007358031,0.896,622.58,622.04,2.44621723]
[1743007358032,0.896,622.58,622.44,1.19923123]
[1743007359733,0.896,622.58,622.55,1.20006372]
[1743007361937,0.896,622.58,622.53,1.20006372]
[1743007364337,0.896,622.58,622.49,1.20006372]
[1743007366438,0.896,622.58,622.51,1.20006372]
[1743007368934,0.896,622.58,622.2,1.19814721]
[1743007368935,0.896,622.58,622.53,1.20006372]
[1743007369538,0.916,622.62,622.53,1.20006372]
[1743007371142,0.916,622.62,622.43,1.20006372]
[1743007372843,0.911,622.68,622.43,1.20006372]
[1743007373742,0.911,622.68,622.47,1.20006372]
[1743007376947,0.911,622.68,622.45,1.20006372]
[1743007378941,0.911,622.68,622.56,1.20006372]
[1743007381148,0.911,622.68,622.55,1.20006372]
[1743007385347,0.911,622.68,622.47,1.20006372]
[1743007387252,0.911,622.68,622.48,1.20006372]
[1743007390960,1.389,622.69,622.48,1.20006372]
[1743007391859,1.389,622.69,622.55,1.20006372]
[1743007393767,1.389,622.69,622.58,1.20006372]
[1743007396368,1.389,622.69,622.51,1.20006372]
[1743007398971,1.389,622.69,622.18,0.27944512]
[1743007398972,1.389,622.69,622.44,1.20006372]
[1743007401376,1.389,622.69,622.47,1.20006372]
[1743007403477,1.389,622.69,622.5,1.20006372]
[1743007405577,1.389,622.69,622.51,1.20006372]
[1743007407569,1.389,622.69,622.46,1.20006372]
[1743007409575,1.389,622.69,622.24,1.20006372]
[1743007413777,2.447,622.69,622.24,1.20006372]
[1743007413973,2.447,622.69,622.25,1.20006372]
[1743007415981,2.447,622.69,622.64,1.20006372]
[1743007418784,2.447,622.69,622.19,0.9443945]
[1743007418785,2.447,622.69,622.62,1.20006372]
[1743007419481,1.058,622.69,622.62,1.20006372]
[1743007421277,1.058,622.69,622.19,0.9443945]
[1743007421278,1.058,622.69,622.63,1.20006372]
[1743007424485,1.058,622.69,622.6,1.20006372]
[1743007426689,1.058,622.69,622.4,1.20006372]
[1743007428689,2.693,622.69,622.35,1.20006372]
[1743007430492,2.693,622.69,622.39,1.20006372]
[1743007432391,3.792,622.69,622.39,1.20006372]
[1743007433094,3.792,622.69,622.4,1.20006372]
[1743007435796,3.792,622.69,622.44,1.20006372]
[1743007438396,3.792,622.69,622.38,1.20006372]
[1743007442401,3.792,622.69,622.19,0.27945073]
[1743007442402,4.705,622.69,622.37,1.20006372]
[1743007444609,4.705,622.69,622.46,1.20006372]
[1743007444801,3.647,622.69,622.46,1.20006372]
[1743007446403,2.548,622.69,622.46,1.20006372]
[1743007449908,2.548,622.69,622.45,1.20006372]
[1743007452708,2.548,622.69,622.38,1.20006372]
[1743007455210,2.548,622.69,622.5,1.20006372]
[1743007456411,1.635,622.69,622.5,1.20006372]
[1743007456807,1.226,622.7,622.5,1.20006372]
[1743007457011,2.4,622.71,622.5,1.20006372]
[1743007457311,2.4,622.71,622.52,1.20006372]
[1743007459612,2.4,622.71,622.49,1.20006372]
[1743007462915,2.4,622.71,622.36,1.20006372]
[1743007463821,2.4,622.71,622.26,1.20006372]
[1743007465315,2.4,622.71,622.25,1.20006372]
[1743007465616,1.342,622.71,622.25,1.20006372]
[1743007467220,1.342,622.71,622.28,1.20006372]
[1743007469019,1.058,622.7,622.26,1.20006372]
[1743007471624,1.058,622.7,622.34,1.20006372]
[1743007474431,1.058,622.7,622.47,1.20006372]
[1743007476430,1.058,622.7,622.6,1.20006372]
[1743007480936,1.058,622.7,622.61,1.20006372]
[1743007484036,1.058,622.7,622.48,1.20006372]
[1743007486935,1.058,622.7,622.51,1.20006372]